bitfinex/quotes_SOLUSD_20250223
["timestamp","ask_amount","ask_price","bid_price","bid_amount"]
[1740311296664,312.34578587,169.9,169.89,194.36618014]
[1740311297983,295.4051034,169.9,169.89,194.36618014]
[1740311298142,187.42545198,169.9,169.89,194.36618014]
[1740311298473,106.75649145,169.9,169.89,186.80308014]
[1740311298655,23.38190634,169.9,169.89,189.56318014]
[1740311298845,11.63105215,169.9,169.89,189.56318014]
[1740311299041,162.92417812,169.98,169.95,1.0]
[1740311299261,162.92417812,169.98,169.97,20.0]
[1740311299854,162.92417812,169.98,169.97,127.68439768]
[1740311300241,162.92417812,169.98,169.97,129.68439768]
[1740311300461,162.92417812,169.98,169.97,128.68439768]
[1740311300660,192.92417812,169.98,169.97,128.68439768]
[1740311301243,192.92417812,169.98,169.97,147.33404654]
[1740311301443,181.14332393,169.98,169.97,151.09944654]
[1740311301644,159.24732583,169.98,169.97,151.09944654]
[1740311301860,147.47132772,169.98,169.97,151.09944654]
[1740311302165,135.69532961,169.98,169.97,151.09944654]
[1740311302364,126.31032961,169.98,169.97,151.09944654]
[1740311302560,108.0303315,169.98,169.97,151.09944654]
[1740311302870,79.0941514,169.98,169.97,151.09944654]
[1740311303054,61.81404629,169.98,169.97,151.09944654]
[1740311303256,50.03804818,169.98,169.97,151.09944654]
[1740311303571,35.33305007,169.98,169.97,151.09944654]
[1740311303866,18.24699196,169.98,169.97,151.09944654]
[1740311304072,6.45099385,169.98,169.97,131.44979768]
[1740311304259,6.45099385,169.98,169.97,129.68439768]
[1740311304566,6.45099385,169.98,169.97,128.68439768]
[1740311304947,6.45099385,169.98,169.97,129.68439768]
[1740311305146,6.45099385,169.98,169.97,148.33404654]
[1740311305345,0.03,169.99,169.98,2.0]
[1740311305548,63.86627782,170.04,170.01,20.0]
[1740311305771,63.86627782,170.04,170.01,132.84439768]
[1740311306665,63.86627782,170.04,170.02,1.0]
[1740311307050,63.86627782,170.04,170.02,2.0]
[1740311307250,63.86627782,170.04,170.02,1.0]
[1740311308574,63.86627782,170.04,170.03,19.64964886]
[1740311308779,63.86627782,170.04,170.03,108.68439768]
[1740311309273,63.86627782,170.04,170.03,207.62439768]
[1740311309881,63.86627782,170.04,170.03,206.62439768]
[1740311311295,63.89627782,170.04,170.03,206.62439768]
[1740311313090,63.89627782,170.04,170.03,207.62439768]
[1740311313703,63.89627782,170.04,170.03,226.27404654]
[1740311313896,63.89627782,170.04,170.03,283.19126657]
[1740311314104,63.89627782,170.04,170.03,284.19126657]
[1740311315707,63.89627782,170.04,170.03,265.54161771]
[1740311317603,63.89627782,170.04,170.03,284.19126657]
[1740311318708,48.25792326,170.04,170.03,301.83126657]
[1740311319002,48.25792326,170.04,170.03,613.83126657]
[1740311319193,36.4865687,170.04,170.03,613.83126657]
[1740311319392,24.71521414,170.04,170.03,613.83126657]
[1740311319592,12.94385958,170.04,170.03,613.83126657]
[1740311319902,176.81640067,170.06,170.05,19.64]
[1740311320110,94.91640067,170.06,170.05,127.32439768]
[1740311320295,94.91640067,170.06,170.05,145.97404654]
[1740311321004,93.91640067,170.06,170.05,145.97404654]
[1740311321210,82.14504611,170.06,170.05,120.18964886]
[1740311321395,70.37646275,170.06,170.05,120.18964886]
[1740311321711,51.34737438,170.13,170.1,21.0]
[1740311321910,51.34737438,170.13,170.1,187.19977856]
[1740311323290,51.34737438,170.13,170.12,30.88794551]
[1740311323291,24.75352383,170.13,170.12,30.88794551]
[1740311323995,6.43968623,170.13,170.12,1.0]
[1740311324191,6.43968623,170.13,170.12,30.88794551]
[1740311324406,6.43968623,170.13,170.12,79.33811293]
[1740311325114,177.2210254,170.18,170.15,20.0]
[1740311325411,177.2210254,170.18,170.15,131.8]
[1740311326898,177.2210254,170.18,170.16,127.16123058]
[1740311327296,33.80331903,170.18,170.16,127.16123058]
[1740311327906,33.80331903,170.18,170.16,125.21303058]
[1740311328499,33.80331903,170.18,170.16,111.98693058]
[1740311329694,33.80331903,170.18,170.17,48.45016742]
[1740311331112,17.90090294,170.18,170.17,48.45016742]
[1740311334590,0.04874896,170.23,170.17,48.45016742]
[1740311334797,51.0,170.3,170.26,62.55449425]
[1740311335009,7.9654569,170.27,170.26,8.4944112]
[1740311335312,7.9654569,170.27,170.17,48.45016742]
[1740311335517,2.9854569,170.27,170.17,48.45016742]
[1740311335696,0.03,170.18,170.17,48.45016742]
[1740311340319,0.03,170.18,170.17,35.99926827]
[1740311341323,0.03,170.18,170.17,27.5084927]
[1740311342110,0.03,170.18,170.16,112.04993058]
[1740311344202,4.99,170.18,170.16,112.04993058]
[1740311344604,9.1082919,170.17,170.07,49.19737169]
[1740311345229,12.08680247,170.17,170.07,20.5765941]
[1740311345428,18.64964886,170.16,170.07,20.5765941]
[1740311345903,46.828106,170.16,170.07,20.5765941]
[1740311346621,28.17845714,170.16,170.07,20.5765941]
[1740311347139,12.08680247,170.15,170.07,20.5765941]
[1740311347704,12.08680247,170.14,170.07,20.6395941]
[1740311349218,12.08680247,170.13,170.07,20.6395941]
[1740311350608,36.81087675,170.1,170.07,20.6395941]
[1740311351608,9.2081307,170.08,170.07,20.6395941]
[1740311352426,9.2081307,170.09,170.07,20.6395941]
[1740311353431,9.2081307,170.08,170.07,20.6395941]
[1740311355713,4.04097514,170.08,170.07,20.6395941]
[1740311356415,12.08680247,170.08,170.07,20.6395941]
[1740311356622,11.98491959,170.08,170.01,81.963]
[1740311357024,16.09165467,170.09,170.01,81.963]
[1740311357516,16.09165467,170.09,170.01,0.063]
[1740311357834,9.206776,170.06,170.01,0.063]
[1740311359610,16.09165467,170.09,170.01,0.063]
[1740311362751,20.0,170.07,170.01,0.063]
[1740311363429,20.0,170.06,170.01,0.063]
[1740311363743,20.0,170.05,170.01,0.063]
[1740311364434,18.64964886,170.04,170.01,0.063]
[1740311364942,38.64964886,170.02,170.01,0.063]
[1740311365120,49.33564886,170.02,170.01,0.063]
[1740311365320,50.52374886,170.02,170.01,0.063]
[1740311366131,51.52374886,170.02,170.01,0.063]
[1740311366529,50.52374886,170.02,170.01,0.063]
[1740311367246,18.64964886,170.0,169.98,0.063]
[1740311367446,23.52964886,170.0,169.98,0.063]
[1740311376058,20.0,169.97,169.89,0.063]
[1740311380643,22.94317083,169.97,169.89,0.063]
[1740311385244,18.64964886,169.96,169.89,0.063]
[1740311388385,29.967,170.01,169.89,0.063]
[1740311388549,7.76309079,170.0,169.89,0.063]
[1740311390665,2.96309079,170.0,169.89,0.063]
[1740311390850,7.74309079,170.0,169.89,0.063]
[1740311392362,2.96309079,170.0,169.89,0.063]
[1740311392570,4.78,169.99,169.89,0.063]
[1740311393172,18.64964886,169.98,169.89,0.063]
[1740311394375,20.0,169.95,169.89,0.063]
[1740311395257,18.64964886,169.94,169.89,0.063]
[1740311395467,4.78,169.93,169.89,0.063]
[1740311397683,18.64964886,169.92,169.89,0.063]
[1740311397970,20.0,169.9,169.89,0.063]
[1740311399764,38.64964886,169.9,169.89,0.063]
[1740311400670,20.0,169.91,169.89,0.063]
[1740311401184,18.64964886,169.9,169.89,0.063]
[1740311403665,38.64964886,169.9,169.89,0.063]
[1740311404465,18.64964886,169.9,169.89,0.063]
[1740311405066,19.64964886,169.9,169.89,0.063]
[1740311405466,20.64964886,169.9,169.89,0.063]
[1740311406086,20.0,169.87,169.83,166.00241701]
[1740311406260,38.64964886,169.85,169.83,166.00241701]
[1740311406668,20.0,169.85,169.83,166.00241701]
[1740311407578,4.76,169.86,169.83,166.00241701]
[1740311408087,4.76,169.86,169.83,0.063]
[1740311409193,81.0,169.88,169.83,0.063]
[1740311409491,4.76,169.88,169.83,0.063]
[1740311409657,20.0,169.87,169.83,0.063]
[1740311414371,4.76,169.89,169.83,0.063]
[1740311414576,18.64964886,169.88,169.83,0.063]
[1740311414777,9.20303628,169.87,169.83,0.063]
[1740311415590,9.20303628,169.86,169.83,0.063]
[1740311416983,9.20303628,169.85,169.83,0.063]
[1740311418584,18.40607256,169.85,169.83,0.063]
[1740311419899,18.40607256,169.86,169.83,0.063]
[1740311421795,9.22238471,169.85,169.83,0.063]
[1740311423103,9.22238471,169.84,169.83,0.063]
[1740311425204,27.87203357,169.84,169.83,0.063]
[1740311425580,9.22238471,169.84,169.83,0.063]
[1740311425880,18.40607256,169.84,169.83,0.063]
[1740311427088,18.40607256,169.86,169.83,0.063]
[1740311428406,6.417,169.83,169.82,13.9717]
[1740311430290,6.417,169.83,169.82,2.8902]
[1740311430807,2.60445129,169.82,169.81,0.063]
[1740311433804,2.60445129,169.82,169.81,2.9532]
[1740311435002,2.60445129,169.82,169.81,0.063]
[1740311436116,21.25410015,169.82,169.81,0.063]
[1740311438001,2.60445129,169.82,169.81,0.063]
[1740311438211,2.60445129,169.82,169.74,11.0815]
[1740311438400,2.60445129,169.82,169.75,2.8902]
[1740311439113,2.60445129,169.82,169.75,84.7902]
[1740311445320,15.63830679,169.83,169.75,84.7902]
[1740311445497,15.63830679,169.83,169.75,84.8532]
[1740311445699,6.417,169.83,169.75,84.8532]
[1740311446421,0.73566426,169.82,169.75,84.8532]
[1740311446824,0.73566426,169.82,169.8,2.9009]
[1740311447006,0.73566426,169.82,169.8,84.8009]
[1740311454303,0.73566426,169.82,169.81,18.64964886]
[1740311454498,1.86878703,169.87,169.81,100.54964886]
[1740311455303,1.86878703,169.87,169.81,101.4324378]
[1740311455918,1.86878703,169.87,169.85,11.4976]
[1740311456124,1.86878703,169.87,169.85,93.3976]
[1740311458941,1.86878703,169.87,169.85,98.0576]
[1740311459838,1.86878703,169.87,169.86,2.9009]
[1740311460033,1.86878703,169.87,169.86,21.55054886]
[1740311460420,0.03,169.88,169.86,103.45054886]
[1740311461121,0.03,169.88,169.87,18.64964886]
[1740311462127,36.81214512,169.93,169.87,18.64964886]
[1740311462450,36.81214512,169.93,169.9,20.0]
[1740311463021,0.03,169.98,169.9,20.0]
[1740311463236,0.03,169.98,169.91,4.64]
[1740311463442,0.03,169.98,169.91,86.54]
[1740311463642,0.03,169.98,169.92,10.8302]
[1740311463812,0.03,169.98,169.93,2.8703]
[1740311465521,0.03,169.98,169.94,18.64964886]
[1740311465724,0.03,169.98,169.94,100.54964886]
[1740311466024,0.03,169.98,169.95,0.88220707]
[1740311466231,0.03,169.98,169.94,81.9]
[1740311471844,0.03,169.98,169.92,81.9]
[1740311473323,0.03,169.98,169.89,81.9]
[1740311474334,2.8994,169.97,169.89,81.9]
[1740311476347,33.5682,169.97,169.88,0.063]
[1740311477534,13.5682,169.97,169.88,0.063]
[1740311478226,33.5682,169.97,169.88,0.063]
[1740311478426,13.5682,169.97,169.88,0.063]
[1740311479149,33.5682,169.97,169.88,0.063]
[1740311479326,18.64964886,169.96,169.88,0.063]
[1740311479530,19.64964886,169.96,169.88,0.063]
[1740311480346,33.5682,169.97,169.88,0.063]
[1740311481136,13.5682,169.97,169.88,0.063]
[1740311481343,2.8994,169.97,169.88,0.063]
[1740311481541,0.03,169.98,169.89,18.64964886]
[1740311481738,0.03,169.98,169.89,21.32854886]
[1740311483540,0.03,169.98,169.89,24.20781487]
[1740311483839,0.03,169.98,169.89,106.10781487]
[1740311485170,0.03,169.98,169.89,107.10781487]
[1740311485351,0.03,169.98,169.91,18.64964886]
[1740311486067,0.03,169.98,169.91,100.54964886]
[1740311486739,0.03,169.98,169.91,101.54964886]
[1740311489862,0.03,169.98,169.91,102.43197699]
[1740311490053,0.03,169.98,169.93,18.64964886]
[1740311490261,0.03,169.98,169.94,4.58]
[1740311491946,0.03,169.98,169.94,86.48]
[1740311495745,0.03,169.98,169.95,2.9038571]
[1740311498362,0.03,169.98,169.96,18.64964886]
[1740311501172,0.03,169.98,169.96,81.9]
[1740311510180,0.03,169.98,169.92,100.54964886]
[1740311511066,0.03,169.98,169.92,81.9]
[1740311511262,2.6965,169.97,169.92,81.9]
[1740311514965,20.03,169.98,169.92,81.9]
[1740311515170,0.03,169.98,169.92,81.9]
[1740311521583,20.03,169.98,169.92,81.9]
[1740311522275,20.03,169.98,169.89,98.96]
[1740311522495,2.8756,169.97,169.89,98.96]
[1740311523058,11.0492,169.95,169.89,98.96]
[1740311523261,11.0492,169.95,169.88,0.063]
[1740311533581,20.0,169.92,169.88,0.063]
[1740311534208,11.0492,169.95,169.88,0.063]
[1740311539707,20.0,169.92,169.88,0.063]
[1740311543106,2.9165,169.91,169.88,0.063]
[1740311543312,20.0,169.9,169.88,0.063]
[1740311545828,11.153,169.89,169.88,0.063]
[1740311547327,20.0,169.9,169.88,0.063]
[1740311547699,2.9165,169.91,169.88,0.063]
[1740311548628,10.6203,169.93,169.88,0.063]
[1740311548802,7.4235,169.95,169.88,0.063]
[1740311550309,20.0,169.91,169.88,0.063]
[1740311552102,2.9635,169.95,169.88,0.063]
[1740311552506,20.0,169.93,169.88,0.063]
[1740311552712,0.03,169.95,169.88,0.063]
[1740311553121,20.03,169.95,169.88,0.063]
[1740311553630,0.03,169.95,169.88,0.063]
[1740311553832,0.03,169.95,169.88,81.963]
[1740311555032,0.03,169.95,169.9,2.9338]
[1740311557331,0.03,169.95,169.9,84.8338]
[1740311557516,0.03,169.95,169.91,18.64964886]
[1740311558223,0.03,169.95,169.91,19.64964886]
[1740311559619,0.03,169.95,169.91,101.54964886]
[1740311561047,0.03,169.95,169.91,100.54964886]
[1740311561660,0.03,169.95,169.91,101.54964886]
[1740311562041,0.03,169.95,169.94,20.0]
[1740311562362,0.03,169.95,169.94,120.54964886]
[1740311568942,0.03,169.95,169.94,81.9]
[1740311569144,0.03,169.95,169.91,81.9]
[1740311570754,0.03,169.95,169.89,99.0]
[1740311575945,0.03,169.95,169.88,0.063]
[1740311580456,20.03,169.95,169.88,0.063]
[1740311581155,20.0,169.94,169.88,0.063]
[1740311582339,20.03,169.95,169.88,0.063]
[1740311582560,0.03,169.95,169.88,0.063]
[1740311582960,0.03,169.95,169.88,81.963]
[1740311583462,0.03,169.95,169.88,86.383]
[1740311585936,20.03,169.95,169.88,81.963]
[1740311587746,20.03,169.95,169.88,0.063]
[1740311588343,20.0,169.94,169.88,0.063]
[1740311589248,24.45,169.95,169.88,0.063]
[1740311589470,22.892,169.93,169.88,0.063]
[1740311590764,20.0,169.92,169.88,0.063]
[1740311592670,2.892,169.93,169.88,0.063]
[1740311592853,20.0,169.92,169.88,0.063]
[1740311593348,22.892,169.93,169.88,0.063]
[1740311593561,20.0,169.92,169.88,0.063]
[1740311595678,20.0,169.89,169.88,0.063]
[1740311599860,2.892,169.93,169.88,0.063]
[1740311600275,13.65130679,169.95,169.88,0.063]
[1740311600578,9.22130679,169.94,169.88,0.063]
[1740311602180,20.0,169.94,169.88,0.063]
[1740311603062,0.03,169.94,169.88,0.063]
[1740311608582,0.03,169.94,169.88,81.963]
[1740311614378,0.03,169.94,169.88,0.063]
[1740311615371,20.0,169.92,169.88,0.063]
[1740311618088,21.0,169.92,169.88,0.063]
[1740311618269,20.0,169.9,169.88,0.063]
[1740311618879,18.64964886,169.89,169.88,0.063]
[1740311619091,23.02964886,169.89,169.88,0.063]
[1740311619890,4.38,169.89,169.88,0.063]
[1740311620473,24.38,169.89,169.88,0.063]
[1740311624183,43.02964886,169.89,169.88,0.063]
[1740311627410,24.38,169.89,169.88,0.063]
[1740311628805,44.02964886,169.89,169.88,0.063]
[1740311630284,24.38,169.89,169.88,0.063]
[1740311630482,20.0,169.87,169.8,0.063]
[1740311630700,13.60130679,169.9,169.8,0.063]
[1740311630906,9.22130679,169.9,169.82,11.4436]
[1740311631216,9.22130679,169.89,169.82,11.4436]
[1740311634089,20.0,169.91,169.82,11.4436]
[1740311638088,9.22130679,169.93,169.82,11.4436]
[1740311638291,20.0,169.92,169.82,11.4436]
[1740311638823,20.0,169.92,169.82,11.5066]
[1740311639046,0.03,169.91,169.82,11.5066]
[1740311640947,20.0,169.9,169.82,11.5066]
[1740311641550,20.03,169.91,169.82,11.5066]
[1740311641719,20.03,169.91,169.83,18.64964886]
[1740311641918,0.03,169.91,169.83,18.64964886]
[1740311642221,0.03,169.91,169.83,23.02964886]
[1740311642733,0.03,169.91,169.85,18.64964886]
[1740311643928,0.03,169.91,169.85,100.54964886]
[1740311644322,0.03,169.91,169.85,103.4333359]
[1740311644717,0.03,169.91,169.87,18.64964886]
[1740311644940,0.03,169.91,169.87,100.54964886]
[1740311645842,0.03,169.91,169.88,3.68699572]
[1740311647117,0.03,169.91,169.88,2.8044]
[1740311648943,0.03,169.91,169.9,18.64964886]
[1740311650170,0.03,169.91,169.9,100.54964886]
[1740311652760,0.03,169.91,169.9,103.56166564]
[1740311653056,0.03,169.94,169.91,10.635]
[1740311653258,0.03,169.94,169.92,18.64964886]
[1740311653558,0.03,169.94,169.93,21.49614886]
[1740311653847,0.03,169.94,169.93,23.37841529]
[1740311654551,0.03,169.94,169.93,22.49614886]
[1740311655532,0.03,169.94,169.93,23.37836714]
[1740311658843,0.03,169.94,169.93,122.98836714]
[1740311659043,0.03,169.95,169.93,122.98836714]
[1740311659044,0.03,169.95,169.94,37.35964886]
[1740311659249,0.03,169.95,169.94,120.25964886]
[1740311662158,0.03,169.95,169.94,118.25964886]
[1740311662356,0.03,169.95,169.94,119.25964886]
[1740311664467,29.057,170.01,169.97,20.0]
[1740311664633,29.057,170.01,169.97,101.9]
[1740311667548,29.057,170.01,169.93,84.7465]
[1740311667856,29.057,170.01,169.93,89.1265]
[1740311668063,29.057,170.01,169.93,86.28]
[1740311669548,29.057,170.01,169.93,81.9]
[1740311669957,29.057,170.01,169.91,99.023]
[1740311670148,20.0,169.98,169.91,99.023]
[1740311671468,2.7861,169.97,169.91,99.023]
[1740311675869,20.0,169.96,169.91,99.023]
[1740311676167,20.0,169.96,169.91,0.063]
[1740311676570,11.5274,169.95,169.91,0.063]
[1740311682573,20.0,169.92,169.91,0.063]
[1740311684374,20.0,169.92,169.85,81.9]
[1740311685375,11.5274,169.95,169.85,81.9]
[1740311687477,11.5274,169.95,169.91,0.063]
[1740311692198,2.7861,169.97,169.91,0.063]
[1740311692588,20.0,169.95,169.91,0.063]
[1740311694291,20.0,169.96,169.91,0.063]
[1740311699598,20.03,169.96,169.91,0.063]
[1740311702097,20.0,169.95,169.91,0.063]
[1740311702308,24.38,169.94,169.91,0.063]
[1740311703612,105.38,169.94,169.91,0.063]
[1740311711057,105.41,169.94,169.91,0.063]
[1740311715260,114.63130679,169.94,169.83,81.963]
[1740311719851,9.22130679,169.92,169.83,81.963]
[1740311722355,9.22130679,169.91,169.83,81.963]
[1740311728653,9.22130679,169.9,169.83,81.963]
[1740311729859,9.22130679,169.91,169.83,81.963]
[1740311731359,9.22130679,169.9,169.83,81.963]
[1740311731669,0.73566426,169.89,169.83,81.963]
[1740311738064,0.73566426,169.89,169.84,18.64964886]
[1740311738550,0.73566426,169.89,169.84,19.64964886]
[1740311738969,0.73566426,169.89,169.84,101.54964886]
[1740311739850,0.73566426,169.89,169.84,100.54964886]
[1740311740048,0.73566426,169.89,169.84,81.9]
[1740311740257,0.73566426,169.89,169.85,18.64964886]
[1740311740689,0.73566426,169.89,169.84,81.9]
[1740311741980,0.73566426,169.89,169.85,18.64964886]
[1740311742179,0.73566426,169.89,169.85,100.54964886]
[1740311742388,0.73566426,169.89,169.85,81.9]
[1740311746290,20.0,169.89,169.83,0.063]
[1740311746654,20.0,169.88,169.83,0.063]
[1740311748294,0.73566426,169.9,169.83,0.063]
[1740311748771,9.22130679,169.89,169.83,0.063]
[1740311751158,9.22130679,169.89,169.83,81.963]
[1740311752377,9.95697105,169.9,169.83,81.963]
[1740311753487,0.73566426,169.9,169.83,81.963]
[1740311755088,0.73566426,169.9,169.84,4.38]
[1740311756991,0.73566426,169.9,169.84,86.28]
[1740311756992,9.95697105,169.9,169.84,86.28]
[1740311757891,0.73566426,169.9,169.84,86.28]
[1740311759295,9.95697105,169.9,169.84,86.28]
[1740311762194,9.95697105,169.9,169.84,81.9]
[1740311762370,9.22130679,169.9,169.84,81.9]
[1740311763399,9.95697105,169.89,169.84,81.9]
[1740311765677,0.73566426,169.89,169.84,81.9]
[1740311767298,0.73566426,169.89,169.85,18.64964886]
[1740311768086,0.73566426,169.89,169.85,100.54964886]
[1740311769913,0.73566426,169.89,169.88,38.64964886]
[1740311770105,0.73566426,169.89,169.88,126.81221956]
[1740311770409,0.73566426,169.89,169.88,126.92964886]
[1740311771402,0.73566426,169.89,169.88,125.92964886]
[1740311772200,0.73566426,169.89,169.88,124.92964886]
[1740311772409,0.73566426,169.89,169.88,125.92964886]
[1740311773816,0.73566426,169.89,169.88,126.92964886]
[1740311775135,0.73566426,169.89,169.88,156.12764886]
[1740311775334,0.73566426,169.89,169.88,158.80314886]
[1740311776622,0.03,169.91,169.9,20.64964886]
[1740311776823,0.03,169.91,169.9,21.5319899]
[1740311779710,0.03,169.91,169.9,121.1319899]
[1740311780008,0.03,169.91,169.9,120.24964886]
[1740311782503,0.03,169.91,169.9,123.16116396]
[1740311783126,0.03,169.91,169.9,105.46116396]
[1740311783328,0.03,169.91,169.9,108.84116396]
[1740311783637,0.03,169.91,169.9,109.84116396]
[1740311785017,0.03,169.91,169.9,107.84116396]
[1740311785619,0.03,169.91,169.9,108.84116396]
[1740311786442,0.03,169.91,169.9,107.84116396]
[1740311786750,0.03,169.91,169.9,108.84116396]
[1740311787830,0.03,169.91,169.9,107.84116396]
[1740311788134,0.03,169.91,169.9,103.46116396]
[1740311788311,0.03,169.91,169.9,107.84116396]
[1740311788918,0.03,169.91,169.9,103.46116396]
[1740311789117,0.03,169.91,169.9,107.84116396]
[1740311789307,0.03,169.91,169.9,103.46116396]
[1740311789512,0.03,169.91,169.9,107.84116396]
[1740311789932,0.03,169.91,169.9,81.9]
[1740311790242,2.7223,169.9,169.89,0.063]
[1740311804952,2.7523,169.9,169.89,0.063]
[1740311814051,83.7523,169.9,169.89,0.063]
[1740311818743,81.03,169.9,169.89,0.063]
[1740311819555,0.03,169.9,169.89,0.063]
[1740311826773,20.03,169.9,169.89,0.063]
[1740311828678,20.03,169.9,169.84,0.063]
[1740311828859,81.0,169.89,169.84,0.063]
[1740311833581,3.45580876,169.88,169.84,0.063]
[1740311834695,3.45580876,169.87,169.84,0.063]
[1740311836276,3.45580876,169.88,169.84,0.063]
[1740311838298,3.45580876,169.87,169.84,0.063]
[1740311839398,81.0,169.89,169.84,0.063]
[1740311840197,0.03,169.9,169.84,0.063]
[1740311840898,3.46568464,169.88,169.84,0.063]
[1740311842501,3.46568464,169.87,169.84,0.063]
[1740311843888,3.46568464,169.86,169.84,0.063]
[1740311845000,9.25130679,169.89,169.84,0.063]
[1740311846798,3.46785903,169.88,169.84,0.063]
[1740311848203,3.46785903,169.87,169.84,0.063]
[1740311849609,3.46785903,169.86,169.84,0.063]
[1740311850782,9.22130679,169.88,169.84,0.063]
[1740311852315,3.4678431,169.87,169.84,0.063]
[1740311852492,12.68914989,169.87,169.84,0.063]
[1740311853314,3.4678431,169.86,169.84,0.063]
[1740311854612,3.4678431,169.85,169.84,0.063]
[1740311861505,9.22130679,169.88,169.84,0.063]
[1740311862205,9.22130679,169.88,169.84,14.1563]
[1740311862608,9.22130679,169.88,169.85,18.64964886]
[1740311862816,3.4663754,169.87,169.85,18.64964886]
[1740311863999,9.22130679,169.88,169.85,18.64964886]
[1740311864214,9.22130679,169.88,169.84,100.4363]
[1740311864409,9.22130679,169.88,169.84,0.063]
[1740311864716,0.03,169.89,169.84,0.063]
[1740311866433,9.22130679,169.88,169.84,0.063]
[1740311867122,12.68701502,169.88,169.84,0.063]
[1740311868720,3.46570823,169.87,169.84,0.063]
[1740311870026,3.46570823,169.86,169.84,0.063]
[1740311871633,9.22130679,169.88,169.84,0.063]
[1740311872619,9.22130679,169.88,169.85,14.0933]
[1740311873221,9.22130679,169.88,169.85,95.9933]
[1740311873437,0.03,169.89,169.86,18.64964886]
[1740311873939,0.03,169.89,169.86,23.02964886]
[1740311877845,0.03,169.89,169.86,26.0482633]
[1740311878829,0.03,169.89,169.86,107.9482633]
[1740311883228,0.03,169.89,169.88,38.64964886]
[1740311883430,0.03,169.89,169.88,121.43230449]
[1740311883658,0.03,169.89,169.88,120.54964886]
[1740311887151,0.03,169.89,169.88,81.9]
[1740311899990,0.03,169.89,169.88,81.963]
[1740311905695,0.03,169.89,169.88,100.61264886]
[1740311911600,0.03,169.89,169.88,81.963]
[1740311921312,0.03,169.89,169.88,100.61264886]
[1740311922211,0.03,169.89,169.88,104.97264886]
[1740311925523,0.03,169.89,169.88,122.67264886]
[1740311925709,0.03,169.89,169.88,104.97264886]
[1740311928629,0.03,169.89,169.88,81.963]
[1740311928931,0.03,169.89,169.88,0.063]
[1740311962054,0.03,169.89,169.88,0.063]
[1740311971865,0.03,169.89,169.88,18.71264886]
[1740311972059,0.03,169.89,169.88,100.61264886]
[1740311972482,0.03,169.89,169.88,112.31124886]
[1740311974280,0.03,169.89,169.88,111.31124886]
[1740311974989,0.03,169.89,169.88,81.963]
[1740311980772,0.03,169.89,169.88,0.063]
[1740311988915,3.49034124,169.89,169.88,0.063]
[1740311991918,0.03,169.89,169.88,0.063]
[1740312004348,2.0,169.85,169.84,0.063]
[1740312004645,23.7950089,169.85,169.84,0.063]
[1740312004845,5.14536004,169.85,169.84,0.063]
[1740312005051,3.45975372,169.85,169.84,0.063]
[1740312006542,4.36,169.88,169.84,0.063]
[1740312007232,13.58130679,169.88,169.84,0.063]
[1740312007616,3.45759553,169.87,169.84,0.063]
[1740312009315,20.0,169.85,169.84,0.063]
[1740312010026,3.45759553,169.86,169.84,0.063]
[1740312011117,9.22130679,169.88,169.84,0.063]
[1740312012037,9.22130679,169.88,169.84,18.71264886]
[1740312012219,9.22130679,169.88,169.84,104.97264886]
[1740312012425,9.22130679,169.88,169.85,14.5877]
[1740312013643,9.22130679,169.88,169.85,96.4877]